Cogmind - Beta 14 @@@ ROGUE MODE // 2025.03.27 @ 19:09:13 Player: GiggleBox Result: Self-destructed Performance ------------- Evolutions (2) 1000 Regions Visited (3) 600 Robots Destroyed (45) 225 Value Destroyed (1272) 1272 Prototype IDs (3) 60 Alien Tech Used (0) 0 Bonus (7) 7 TOTAL SCORE: 3164 Bonus ------- Follower Combat Kills 7 Cogmind --------- Core Integrity 413/550 Matter 300/300 Energy 240/240 System Corruption 0% Temperature Warm (120) Movement Walking (265) Ox2 Location -8/Materials Parts ------- > --- POWER (1) -------- Nuclear Core > --- PROPULSION (4) --- Aluminum Leg Titanium Leg > --- UTILITY (3) ------ High-capacity Storage Unit Seismic Detector Hardened Medium Armor Plating > --- WEAPON (3) ------- Shock Rifle Hammer > --- INVENTORY (20) --- Reinforced Ion Engine Nuclear Core Aluminum Leg Carbon-fiber Leg Improved Heat Sink Cooling System High-capacity Battery (250) High-capacity Matter Pod (200) Structural Scanner Improved Terrain Scanner Improved Targeting Computer V3-11A's Pendant Battle Cannon Battle Cannon Missile Launcher Missile Launcher Multitool Shrapnel Trap Piercing Trap Peak State ------------ > --- POWER ------------ Nuclear Core > --- PROPULSION ------- Aluminum Leg Aluminum Leg Aluminum Leg Carbon-fiber Leg > --- UTILITY ---------- Cooling System High-capacity Storage Unit Makeshift Kinetic Plating > --- WEAPON ----------- Heavy Battle Rifle Battle Cannon Battle Cannon > --- INVENTORY -------- Nuclear Core Light Treads Aluminum Leg Aluminum Leg Titanium Leg Improved Heat Sink High-capacity Battery High-capacity Matter Pod Structural Scanner Improved Terrain Scanner Seismic Detector Seismic Detector Improved Targeting Computer V3-11A's Pendant Missile Launcher Missile Launcher Multitool Shrapnel Trap Piercing Trap Piercing Trap [Rating: 27] Favorites ----------- Power Ion Engine Engine Ion Engine Power Core Nuclear Core Propulsion Aluminum Leg Treads Light Treads Leg Aluminum Leg Utility High-capacity Storage Unit Device V3-11A's Pendant Storage High-capacity Storage Unit Protection Hardened Medium Armor Plating Weapon EM Pulse Gun Energy Gun EM Pulse Gun Ballistic Gun Heavy Battle Rifle Ballistic Cannon Battle Cannon Impact Weapon Hammer Build | -11 -10 -10 -8 ------- Run | Yrd Mat Sub Mat Slots Evolved 4 | . . . 4 Power . | . . . . Propulsion 2 | . . . 2 Utility 1 | . . . 1 Weapon 1 | . . . 1 Parts Attached 48 | 2 12 15 19 Power 3 | . 1 1 1 Engine 2 | . 1 1 . Core 1 | . . . 1 Reactor . | . . . . Propulsion 10 | . 2 3 5 Treads 2 | . 2 . . Leg 8 | . . 3 5 Wheel . | . . . . Hover . | . . . . Flight . | . . . . Utility 18 | 1 3 6 8 Device 10 | 1 . 4 5 Storage 2 | . 2 . . Processor . | . . . . Hackware . | . . . . Protection 6 | . 1 2 3 Artifact . | . . . . Weapon 17 | 1 6 5 5 Energy Gun 10 | . 5 3 2 Energy Cannon . | . . . . Ballistic Gun 4 | 1 1 1 1 Ballistic Cannon 2 | . . 1 1 Launcher . | . . . . Special Weapon . | . . . . Impact Weapon 1 | . . . 1 Slashing Weapon . | . . . . Piercing Weapon . | . . . . Special Melee Weapon . | . . . . Unidentified Prototypes 1 | . . 1 . Parts Lost 15 | . 2 8 5 Power 1 | . . 1 . Propulsion 5 | . . 2 3 Utility 1 | . . 1 . Weapon 8 | . 2 4 2 Highest Loss Streak 3 | . 1 3 3 To Critical Strikes . | . . . . Average Slot Usage (%) 99 | . 99 99 99 Engine 12 | . 14 13 1 Core 1 | . . . 7 Treads 6 | . 11 6 . Leg 22 | . 16 21 35 Device 12 | . 14 12 12 Storage 13 | . 14 14 9 Protection 1 | . . 1 5 Energy Gun 14 | . 20 14 6 Ballistic Gun 8 | . 7 8 8 Ballistic Cannon 4 | . . 4 7 Peak Build Rating 27 | 7 9 15 27 Average Rating 13 | 6 8 12 22 On Entrance 9 | 6 7 9 15 Naked Turns . | . . . . Heaviest Build 67 | 12 52 58 67 Greatest Support 52 | 20 40 40 52 Greatest Overweight (x) 2 | . 2 2 2 Average Overweight (x) 1 | . . 1 1 Largest Inventory Capacity 20 | 8 20 20 20 Average Capacity 19 | 8 16 20 20 Most Carried 20 | 7 20 20 20 Average Carried 17 | 6 14 18 18 Final Capacity 20 | 8 20 20 20 Final Carried 20 | 7 20 19 19 Class Distribution -------------------- 92% | Mutant 5% | Skirmisher Dominant Class ---------------- Mutant | -10/Materials Mutant | -10/Subcaves Mutant | -8/Materials Resources | -11 -10 -10 -8 ----------- Run | Yrd Mat Sub Mat Matter Collected 1488 | 276 288 318 606 Remotely . | . . . . Salvage Created 1821 | 76 645 450 650 Parts 102 | 7 41 26 28 Haulers Intercepted . | . . . . Recyclers Shooed 3 | . 1 . 2 Parts Field Recycled . | . . . . Retrieved Matter . | . . . . Parts Self-Destructed 18 | . . 18 . Prevented . | . . . . Kills | -11 -10 -10 -8 ------- Run | Yrd Mat Sub Mat Combat Hostiles Destroyed 32 | . 12 8 12 Guns 27 | . 11 8 8 Cannons 4 | . . . 4 AOE 1 | . 1 . . Classes Destroyed 11 | 2 2 3 4 Worker 2 | . . . 2 Builder 1 | . . . 1 Tunneler 1 | 1 . . . Recycler 4 | 1 . . 3 Turret 2 | . . 2 . Watcher 3 | . 3 . . Swarmer 7 | . . 1 6 Grunt 15 | . 12 . 3 Sentry 2 | . . . 2 Hunter 1 | . . . 1 Subdweller 7 | . . 7 . Best Kill Streak 5 | 1 3 3 5 Combat Bots Only 3 | . 2 2 3 Max Kills in Single Turn 2 | 1 1 1 2 Gunslinging 1 | . . . 1 Exploded 1 | . 1 . . Melee . | . . . . Uniques/NPCs Destroyed . | . . . . Combat | -11 -10 -10 -8 -------- Run | Yrd Mat Sub Mat Hostile Shots Fired 263 | . 50 101 112 Missed 88 | . 11 51 26 Damage Taken 2443 | . 565 794 1084 Core 344 | . 37 170 137 Absorbed by Shields . | . . . . Ignored by Resistances 7 | . . . 7 Regen/Repaired (Parts) 62 | . . . 62 Core Remaining (%) 58 | 100 . 17 . Volleys Fired 171 | 14 46 53 58 Largest 3 | 2 2 2 3 Hottest 112 | 40 80 80 112 Shots Fired 333 | 28 90 89 126 Gun 262 | 28 90 75 69 Cannon 71 | . . 14 57 Launcher . | . . . . Special . | . . . . Kinetic 162 | 28 20 17 97 Thermal . | . . . . Explosive . | . . . . Electromagnetic 171 | . 70 72 29 Robot Hit Streak 10 | 3 9 10 9 Robot Miss Streak 7 | 3 3 3 7 Penetration Max . | . . . . Secondary Targets 1 | . . . 1 Max Gunslinging Chain 1 | . . . 1 Shots Hit Robots 195 | 15 59 57 64 Core Hits 83 | 3 29 27 24 Critical Kills 2 | . . . 2 Critical Parts Destroyed 1 | . . . 1 Critical Strikes 9 | . 1 2 6 Destroy 1 | . . . 1 Blast 3 | . . . 3 Corrupt 3 | . 1 2 . Smash 2 | . . . 2 Melee Attacks 5 | . . . 5 Impact 5 | . . . 5 Slashing . | . . . . Piercing . | . . . . Sneak Attacks 2 | . . . 2 Combat Hostiles . | . . . . Follow-up Attacks . | . . . . Damage Inflicted 3140 | 167 951 560 1462 Guns 2284 | 167 867 560 690 Cannons 612 | . . . 612 Explosions 68 | . 68 . . Melee 141 | . . . 141 Ramming 35 | . 16 . 19 Kinetic 1464 | 167 162 39 1096 Thermal 68 | . 68 . . Explosive . | . . . . Electromagnetic 1432 | . 705 521 206 Impact 141 | . . . 141 Slashing . | . . . . Piercing . | . . . . Highest Corruption . | . . . . Average Corruption . | . . . . Corruption Purged . | . . . . Corruption Blocked . | . . . . Overload Shots . | . . . . Overflow Damage 19 | . 1 . 18 Projectiles 18 | . . . 18 Explosions 1 | . 1 . . Melee . | . . . . Knockbacks 1 | . . . 1 Impact . | . . . . Kinetic 1 | . . . 1 Secondary . | . . . . Self-Inflicted Damage 56 | . 56 . . Shots 2 | . 2 . . Rammed 2 | . 2 . . Targets Rammed 10 | . 6 . 4 Kicked 8 | . 4 . 4 Crushed . | . . . . Highest Temperature 288 | . 133 13 288 Average Temperature 69 | . 46 5 91 Received Heat Transfer 819 | . 327 186 306 Effects 3 | . . . 3 Interference 3 | . . . 3 Siege Activations . | . . . . Robots Corrupted . | . . . . Combat Hostiles . | . . . . Parts Fried 4 | . 1 3 . Impact Corruptions . | . . . . Robots Melted . | . . . . Combat Hostiles . | . . . . Parts Melted . | . . . . Heat Transferred 50 | . 50 . . Parts Sabotaged . | . . . . Parts Stolen . | . . . . Parts Stripped . | . . . . Power Chain Reactions 2 | . 2 . . Alert | -11 -10 -10 -8 ------- Run | Yrd Mat Sub Mat Peak Influence 251 | 10 187 . 251 Initial 61 | . 6 . 61 Average 90 | 4 65 . 129 Maximum Alert Level 1 | . . . 1 Low Security (%) 97 | 100 100 . 94 Level 1 2 | . . . 5 Level 2 . | . . . . Level 3 . | . . . . Level 4 . | . . . . Level 5 . | . . . . High Security . | . . . . Max Security . | . . . . Squads Dispatched 3 | . 3 . . Investigation 1 | . 1 . . Extermination . | . . . . Reinforcement 2 | . 2 . . Assault . | . . . . Garrison . | . . . . Intercept . | . . . . Searches Triggered . | . . . . Construction Impeded . | . . . . Haulers Reinforced . | . . . . Active Scanning Responses . | . . . . Cargo Convoy Interrupts . | . . . . Stealth | -11 -10 -10 -8 --------- Run | Yrd Mat Sub Mat Distress Signals 4 | . 2 . 2 Communications Jammed . | . . . . Distress Signals . | . . . . Times Spotted 70 | . 17 28 25 Peak Tracking Total 5 | . 3 3 5 Tactical Retreats 6 | . . 3 3 Traps | -11 -10 -10 -8 ------- Run | Yrd Mat Sub Mat Traps Triggered 3 | . 1 2 . Indirectly . | . . . . Trap Hack Attempts . | . . . . Triggered . | . . . . Disarmed . | . . . . Reprogrammed . | . . . . Reused 1 | . . . 1 Traps Extracted . | . . . . Installed 1 | . . . 1 Triggered 2 | . . 1 1 Most Traps Carried 3 | . . 3 3 Machines | -11 -10 -10 -8 ---------- Run | Yrd Mat Sub Mat Machines Disabled 4 | . 3 1 . Max in Single Turn 1 | . 1 1 . Machines Repaired . | . . . . Machines Dismantled . | . . . . Machines Sabotaged . | . . . . Overloaded Fab Kills . | . . . . Hacking | -11 -10 -10 -8 --------- Run | Yrd Mat Sub Mat Machines Accessed 15 | . 6 3 6 Terminals 9 | . 4 . 5 Fabricators . | . . . . Repair Stations 2 | . 1 . 1 Recycling Units 1 | . 1 . . Scanalyzers . | . . . . Garrison Access . | . . . . Total Hacks 40 | . 11 6 23 Successful 28 | . 7 6 15 Failed 11 | . 4 . 7 Catastrophic 1 | . 1 . . Database Lockouts 1 | . . . 1 Manual 5 | . . . 5 Terminals 29 | . 9 . 20 Fabricators . | . . . . Repair Stations 4 | . 1 . 3 Recycling Units 1 | . 1 . . Scanalyzers . | . . . . Garrison Access . | . . . . Terminal Hacks 25 | . 6 6 13 Record 5 | . . 4 1 Robot Analysis 2 | . . . 2 Prototype ID Bank 1 | . . . 1 Open Door 1 | . . 1 . Branch Access Points 1 | . . . 1 Terminal Index 1 | . . . 1 Alert Level 5 | . 2 . 3 Locate Traps 2 | . 1 . 1 Maintenance Status 1 | . 1 . . Hauler Manifests 1 | . . . 1 Registered Components 1 | . 1 . . Zone Layout 3 | . 1 . 2 Release Object 1 | . . 1 . Fabricator Hacks . | . . . . Repair Station Hacks 2 | . . . 2 Scan Component 1 | . . . 1 Repair 1 | . . . 1 Recycling Unit Hacks 1 | . 1 . . Report Inventory 1 | . 1 . . Scanalyzer . | . . . . Garrison Access Hacks . | . . . . Unauthorized Hacks . | . . . . Terminals . | . . . . Fabricators . | . . . . Repair Stations . | . . . . Recycling Units . | . . . . Scanalyzers . | . . . . Garrison Access . | . . . . Data Cores Recovered . | . . . . Used . | . . . . Hacking Detections 9 | . 4 . 5 Full Trace Events . | . . . . Feedback Events . | . . . . Feedback Blocked . | . . . . Robot Schematics Acquired . | . . . . Robots Built . | . . . . Authchips . | . . . . Time . | . . . . Total Robot Build Rating . | . . . . Part Schematics Acquired . | . . . . Parts Built . | . . . . Authchips . | . . . . Time . | . . . . Total Part Build Rating . | . . . . Parts Repaired 1 | . . . 1 Time 19 | . . . 19 Parts Recycled . | . . . . Recycled Matter . | . . . . Retrieved Matter . | . . . . Retrieved Components . | . . . . Parts Scanalyzed . | . . . . Part Schematics Acquired . | . . . . Parts Damaged . | . . . . Bothacking | -11 -10 -10 -8 ------------ Run | Yrd Mat Sub Mat Used RIF Installer . | . . . . Robots Hacked . | . . . . Non-combat . | . . . . Combat . | . . . . Robot Hacks Applied . | . . . . Relay Couplers Released . | . . . . Fabnet Peak Effective % . | . . . . Robots Rewired . | . . . . Allies Hacked . | . . . . Hacks Repelled . | . . . . Allies | -11 -10 -10 -8 -------- Run | Yrd Mat Sub Mat Total Allies 3 | . . 3 . Largest Group 2 | . . 2 2 Highest-Rated Group 38 | . . 38 38 Highest-Rated Ally 19 | . . 19 19 Total Orders . | . . . . Ally Attacks 5 | . . . 5 Total Damage 18 | . . . 18 Kills 1 | . . . 1 Allies Corrupted . | . . . . Allies Melted . | . . . . Intel | -11 -10 -10 -8 ------- Run | Yrd Mat Sub Mat Robot Analysis Total 2 | . . . 2 Derelict Logs Recovered 1 | . . 1 . Drone Launches . | . . . . Drone Recoveries . | . . . . Exploration | -11 -10 -10 -8 ------------- Run | Yrd Mat Sub Mat Turns Passed 9381 | 99 1753 6168 1361 Spaces Moved 3756 | 46 796 2344 570 Core . | . . . . Treads 824 | . 271 553 . Legs 2932 | 46 525 1791 570 Wheels . | . . . . Hover . | . . . . Flight . | . . . . Fastest Speed 120 | 120 120 240 190 Average Speed 230 | 120 193 255 191 Slowest Speed 265 | 120 260 260 265 Overloaded Moves . | . . . . Propulsion Burnouts . | . . . . Robots Hopped . | . . . . Cave-ins Triggered . | . . . . Exploration Rate (%) 63 | 4 100 96 54 Regions Visited 3 Branch Regions 1 Pre-discovered Areas 1 | . . 1 . Known Exits Taken . | . . . . Unknown Exits Taken 3 | 1 1 1 . Scrap Searched 5 | . . 5 . Spaces Dug 6 | . . . 6 Terrain Destroyed 26 | . 6 . 20 Melee 3 | . . . 3 Projectile 17 | . . . 17 AOE 6 | . 6 . . Terrain Rammed . | . . . . Walls Destroyed . | . . . . Machines Disabled . | . . . . Actions | -11 -10 -10 -8 --------- Run | Yrd Mat Sub Mat Total 4136 | 63 919 2439 715 Wait 73 | 1 26 5 41 Move 3753 | 45 795 2343 570 Hop . | . . . . Pick Up 45 | 1 23 10 11 Fast Attach 1 | 1 . . . Attach 17 | . 2 8 7 Detach . | . . . . Swap 30 | 1 10 7 12 Drop 20 | . 11 3 6 Fire 171 | 14 46 53 58 Melee 5 | . . . 5 Ram . | . . . . Kick 8 | . 4 . 4 Crush 2 | . 2 . . Escape Stasis . | . . . . Rewire 9 | . . 9 . Trap 1 | . . . 1 Miscellaneous 1 | . . 1 . Route ------- -11/Scrapyard -10/Materials (discovered 5 exits: [*Mat x3] / [*Min] / *Sub) -10/Subcaves (discovered 3 exits: *Mat x2 / [*Rec]) -8/Materials (discovered 1 exit: [*Fac]) History --------- Turn | Location | Event 1 | -11/Scrapyard | Discovered new exit (range 2) 100 | -11/Scrapyard | Entered Materials 314 | -10/Materials | Build established: Mutant 348 | -10/Materials | Discovered new exit (range 16) 707 | -10/Materials | Discovered new exit (range 15) 1037 | -10/Materials | Discovered new exit (range 8) 1355 | -10/Materials | Discovered new exit (range 9) 1434 | -10/Materials | Discovered new exit (range 12) 1853 | -10/Materials | Entered Subcaves 1858 | -10/Subcaves | A swath of the cavern ceiling suddenly collapsed 2499 | -10/Subcaves | Shifting Twisted Machinery released Sub. Laser 2524 | -10/Subcaves | Shifting Twisted Machinery released Shrapnel Trap 2680 | -10/Subcaves | Core integrity fell below 50% 2883 | -10/Subcaves | Discovered new exit (range 9) 2935 | -10/Subcaves | Learned 2 Materials zone layouts 3335 | -10/Subcaves | Visited triangular shrine 3351 | -10/Subcaves | Found Prototype Device 3352 | -10/Subcaves | Identified V3-11A's Pendant 3357 | -10/Subcaves | Befriended Subdweller 3543 | -10/Subcaves | Released subatomizers from SUBCON Basin 3678 | -10/Subcaves | A swath of the cavern ceiling suddenly collapsed 4091 | -10/Subcaves | Discovered new exit (range 13) 4118 | -10/Subcaves | Core integrity fell below 20% 4138 | -10/Subcaves | Lost 3 parts (1p2w) 4801 | -10/Subcaves | Approached by friendly Subdweller 4979 | -10/Subcaves | Shifting Twisted Machinery released Piercing Trap 4987 | -10/Subcaves | Shifting Twisted Machinery released Sub. Power Source 5033 | -10/Subcaves | Discovered new exit (range 9) 5700 | -10/Subcaves | Befriended Subdweller 5835 | -10/Subcaves | Visited Clippyterm 5843 | -10/Subcaves | Learned location of Deep Caves (-7) 5843 | -10/Subcaves | Learned Factory garrison access intel 6537 | -10/Subcaves | Shifting Twisted Machinery released Battle Cannon 6538 | -10/Subcaves | Shifting Twisted Machinery released Piercing Trap 8021 | -10/Subcaves | Entered Materials 8021 | -8/Materials | Accompanied by 2 allies 8021 | -8/Materials | Evolved 4 slots: Propulsion x2, Utility x1, Weapon x1 8254 | -8/Materials | Central database locked down 8340 | -8/Materials | Build established: Skirmisher 8861 | -8/Materials | Repaired Carbon-fiber Leg 8974 | -8/Materials | Discovered new exit (range 16) 9063 | -8/Materials | Build established: Mutant 9382 | -8/Materials | Self-destructed Last Messages --------------- 09050_ K-01 Serf cleans the Integration Channel. 09078_ Connecting with Terminal... 09087_ Sneak attack on K-01 Serf. 09087_ K-01 Serf suffers critical hit (Smash). 09087_ K-01 Serf destroyed. 09090_ Acquired 23 matter. 09092_ Extracted 100 matter. 09099_ K-01 Serf collects debris. 09274_ Acquired 11 matter. 09283_ Sneak attack on R-06 Scavenger. 09283_ R-06 Scavenger suffers critical hit (Smash). 09283_ R-06 Scavenger destroyed. 09286_ Acquired 89 matter. 09288_ Extracted 4 matter. 09290_ R-06 Scavenger collects Lgt. Ion Engine. 09372_ Hvy. Battle Rifle destroyed. 09372_ Aluminum Leg destroyed. 09375_ Critical hit (Burn: +37). 09375_ K-01 Serf destroyed. 09378_ Critical hit (Burn: +37). Map ----- +----------------------------------------------------+ | ?????????????????????????????????????????? ####### | | ?????????????????????????????????????????? # """ # | | ?????????????????????????????????????????? # "T" # | | ?????????????????????????????????????????? # # | | ?????????????????????????????????????????? # + | | ?????????????????????????????????????????? # """ # | | ????????????????????????????? # """ # | | ????????????????????????????? # """ # | | ############????????????????????????????? ####### | | #??#########????????????? ????????????? ####### | | #??# #????????????? #???????????????????? | | #??# """ ##????????????? #???????????????????? | | #??# "Y" #?????????????? #???????????????????? | | ##??# #?????????????? #??##???????????????? | | ????# #?????????????# ##? ????????????????? | | ????# """ #????????????? # "????????????????? | | ????# """ ########?????? # ?????????????????? | | ????# """ #[ #?????? +??????????????????# | | ????# # """ #?????? Y#??????????????????# | | ????# """ # """ ???????! Y ???????????????????# | | ????# """ # """ ???????# #???????????????????# | | ????# """ # ? ????????# #???????????????????# | | ????# # ? ????????# #???????????????????# | | ########+######/##########a #########???????????# | | r tr ??????? | | r @ ??????? | | u ???? | | #############+######### ###############?????#### | | #???????# #???# #???????????????????#### | | #???????# #???# #??????????????????????# | | #????#### """ """ #???# #??????????????????????# | | ######### """ """ #???# #??????????????????????? | | # ## """ """ #???# #??????????????????????? | | # * ] ## "" """ #???# #??????????????????????? | | # "" #???# #??????????????????????? | | # """ ## #???# #??????????????????????? | | + """ ############???# #????????????????# # | | # """ #######????????# a ????????????????##+#### | | ######### ### w % ! | | #???## # ######### ############+#### | | #???## !! # ########## ##### # ## ## | | ###### !! + ### # ##?## # """ ""## ??? | | ##### ##### + #??## # """ Y"## ??? | | + ##?## """ # #??## # """ ""## ??? | | ##### ##### """ + #??## # ## ??? | | ##??############# """ # #??## # ## ??? | | ????### #### # ##?## # ## ?## | | ?????## !######+#### ##?## + ####?## | | ?????## """ ###### ####%##?## ################# | | ?????## """ + [% ##### ## ###### | +----------------------------------------------------+ Best States ------------- Heat Dissipation 53 Energy Generation 14 Energy Capacity 250 Matter Stores 300 Matter Capacity 300 Sight Range 16 Terrain Scan Density 10 Armor Coverage 225 Resistance: KI 10 Evasion (%) 55 Recoil Reduction 2 Item Schematics ----------------- None Robot Schematics ------------------ None Fabricated ------------ Nothing Alien Tech Used ----------------- None Achievements -------------- None Challenges ------------ None Game ------ Seed SpikedMultinovaSpecial Manual? 0 Play Time 00:43:37 Cumulative 41.7 hours Start 2025.03.27 @ 18:21:58 End 2025.03.27 @ 19:09:13 Sessions 1 Manual Loads 0 Difficulty Rogue Special Mode None Game No. 49 Rogue 49 Adventurer 0 Explorer 0 Win Type - Total 0 Types 0/0/0/0/0/0/0/0/0 Lore% 10 Gallery% 32 Achievement% 26 Wizard Run 0 Options --------- Layout 0 ASCII 0 Keyboard 1 Movement Numpad Keybinds 0 Fullscreen 1 Font 24/Terminus Map View 76x50 Zoom Use 0% Tactical HUD 1 Map Filters NONE Filters NONE Steam 1 RUN: 2cf2b4cc-b7c6-41d2-ab89-9daa9e00256e